Cogmind - Beta 13 @@@ ROGUE MODE // 2024.05.02 @ 17:08:17 Player: Wyvric Result: Destroyed self with Heavy Rocket Launcher Performance ------------- Evolutions (5) 2500 Regions Visited (18) 3600 Robots Destroyed (174) 870 Value Destroyed (7544) 7544 Prototype IDs (35) 700 Alien Tech Used (1) 200 Bonus (3783) 3783 TOTAL SCORE: 19197 Bonus ------- High Alert Combat Kills 569 Follower Combat Kills 2119 Network Hubs Disabled 400 Met Zhirov 300 Built Enhanced Grunts 300 Met R17 at Cetus 500 Friendly Fire -405 Cogmind --------- Core Integrity 0/1000 Matter 238/300 Energy 232/232 System Corruption 0% Temperature Cool (0) Movement Treading (268) Ox1 Location -4/Proximity Caves Parts ------- > --- POWER (1) -------- Fission-Neutrino Core > --- PROPULSION (6) --- Improved Treads Treaded Heavy-FC Exoskeleton > --- UTILITY (8) ------ Armored Scrap Engine Huge Storage Unit Structural Scanner Advanced Signal Interpreter Improved Terrain Scan Processor Advanced Targeting Computer > --- WEAPON (2) ------- Heavy Rocket Launcher Heavy Missile Launcher > --- INVENTORY (25) --- Fusion Reactor Improved Cooling System Advanced Cooling System High-capacity Storage Unit 0b10 Decoder Chip [Skirmisher] Precision Matter Filter Improved Weapon Cycler Makeshift Transmission Jammer Core Shielding Experimental Propulsion Shielding Damper Plating Advanced System Shield Long-range Tractor Beam Transdimensional Reconstructor Dispersion Rifle Proton Cannon Long-range Proton Cannon Heavy Plasma Cannon Hardcell Cannon Hardcell Cannon Improved Plasma Cutter Power Maul Peak State ------------ > --- POWER ------------ Fission-Neutrino Core > --- PROPULSION ------- Heavy Treads Heavy Treads Treaded Heavy-FC Exoskeleton > --- UTILITY ---------- Armored Scrap Engine Huge Storage Unit Advanced Signal Interpreter Experimental Core Analyzer Improved Hacking Suite Stealth Drone Bay > --- WEAPON ----------- Mass Driver Ballistic Slug Construct/C > --- INVENTORY -------- Antimatter Reactor Heavy Treads Advanced Cooling System High-capacity Matter Pod Advanced Sensor Array Hardened Light Armor Plating Damper Plating Dynamic Insulation System Dynamic Insulation System Beamcaster Beamcaster Beamcaster Wave Gun Long-range Proton Cannon Heavy Battle Rifle Heavy Battle Rifle Heavy Battle Rifle Heavy Battle Rifle Slug Cannon Slug Cannon Improved Plasma Cutter [Rating: 125] Favorites ----------- Power Constructs Engine Ion Engine Power Core Constructs Reactor Antimatter Reactor Propulsion Constructs Treads Constructs Leg Improved Aluminum Leg Wheel Wheel Hover Unit Gravmag System Utility Huge Storage Unit Device Armored Scrap Engine Storage Huge Storage Unit Processor Advanced Signal Interpreter Hackware Improved Hacking Suite Protection Core Shielding Weapon Constructs Energy Gun Plasma Rifle Energy Cannon Neutron Cannon Ballistic Gun Heavy Battle Rifle Ballistic Cannon Constructs Launcher Heavy Rocket Launcher Special Weapon Improved Plasma Cutter Impact Weapon Great Maul Slashing Weapon Axe Build | -11 -10 -9 -9 -8 -8 -8 -6 -6 -6 -6 -6 -5 -5 -5 -5 -5 -5 -4 ------- Run | Yrd Mat Mat Min Mat Sto Rec Fac Ext Cet Arc Hub Fac Was Fac Upp Upp Zhi Pro Slots Evolved 10 | . . 2 . 2 . . 4 . . . . 2 . . . . . . Power . | . . . . . . . . . . . . . . . . . . . Propulsion 4 | . . . . 2 . . 2 . . . . . . . . . . . Utility 6 | . . 2 . . . . 2 . . . . 2 . . . . . . Weapon . | . . . . . . . . . . . . . . . . . . . Parts Attached 353 | 6 4 21 18 18 19 25 30 25 19 19 32 24 24 18 35 4 8 4 Power 18 | 1 . 3 2 1 1 3 1 . 2 . . . 1 . 2 . 1 . Engine 12 | 1 . 3 2 1 1 3 . . 1 . . . . . . . . . Core 2 | . . . . . . . 1 . . . . . . . 1 . . . Reactor 4 | . . . . . . . . . 1 . . . 1 . 1 . 1 . Propulsion 84 | 2 . 6 9 6 6 7 6 9 4 5 6 1 9 2 5 . 1 . Treads 25 | 2 . 2 4 . 1 1 . . 2 1 . . 6 1 4 . 1 . Leg 27 | . . 4 . 4 2 . 4 8 2 . . . 3 . . . . . Wheel 19 | . . . 5 2 3 2 2 . . . 3 1 . . 1 . . . Hover 13 | . . . . . . 4 . 1 . 4 3 . . 1 . . . . Flight . | . . . . . . . . . . . . . . . . . . . Utility 148 | 1 2 6 3 3 2 3 13 11 9 11 19 18 8 11 19 2 5 2 Device 95 | . . 3 2 1 1 2 6 7 5 10 17 12 1 6 16 1 3 2 Storage 5 | 1 1 . . 1 . . . . . . . . 1 1 . . . . Processor 15 | . . . . 1 . 1 2 1 1 . 1 . 2 3 3 . . . Hackware 9 | . . . . . . . 2 . . 1 . 6 . . . . . . Protection 24 | . 1 3 1 . 1 . 3 3 3 . 1 . 4 1 . 1 2 . Artifact . | . . . . . . . . . . . . . . . . . . . Weapon 103 | 2 2 6 4 8 10 12 10 5 4 3 7 5 6 5 9 2 1 2 Energy Gun 28 | 2 . . 2 5 6 . 2 1 2 1 . . 6 . 1 . . . Energy Cannon 19 | . . . . . 3 5 1 . . 2 2 2 . . 2 1 1 . Ballistic Gun 18 | . 2 4 . . . 3 5 1 1 . . 1 . . 1 . . . Ballistic Cannon 5 | . . . . . . 1 . . . . . 1 . 3 . . . . Launcher 23 | . . 2 2 3 1 1 2 . . . 3 . . 1 5 1 . 2 Special Weapon 1 | . . . . . . . . . . . . . . 1 . . . . Impact Weapon 7 | . . . . . . . . 3 1 . 2 1 . . . . . . Slashing Weapon 2 | . . . . . . 2 . . . . . . . . . . . . Piercing Weapon . | . . . . . . . . . . . . . . . . . . . Special Melee Weapon . | . . . . . . . . . . . . . . . . . . . Unidentified Prototypes 15 | . . . . . 1 . . 5 2 1 . . 2 . . . 4 . Parts Lost 73 | . . 3 9 3 9 5 8 . 6 1 14 7 . 1 5 1 . 1 Power 12 | . . 1 1 1 1 1 2 . 2 . . 1 . . 2 . . . Propulsion 25 | . . 2 4 1 3 1 3 . 1 . 6 2 . . 1 1 . . Utility 18 | . . . 2 . 2 . 2 . 1 1 4 3 . 1 1 . . 1 Weapon 18 | . . . 2 1 3 3 1 . 2 . 4 1 . . 1 . . . Highest Loss Streak 12 | . . 1 9 1 5 3 3 . 4 1 12 6 . 1 3 1 . 1 To Critical Strikes 3 | . . . . . . 1 . . . . . 1 . . . 1 . . Average Slot Usage (%) 74 | . 94 94 97 97 96 69 69 75 51 68 74 68 50 71 76 79 72 70 Engine 3 | . 14 10 10 8 9 6 . 3 4 1 . . . . . . . . Core 2 | . . . . . . 2 5 . . 4 1 . . . 2 5 3 5 Reactor 1 | . . . . . . . . 2 . . 4 4 4 5 2 . 1 . Treads 7 | . 28 6 10 . . 10 . . 4 1 1 1 9 15 14 17 13 11 Leg 5 | . . 15 . 25 31 . 8 24 6 1 . 3 1 . 2 . . . Wheel 2 | . . . 11 10 1 3 5 . 1 . 1 3 . . 1 3 . . Hover 5 | . . . . . . 3 8 . . 19 20 2 1 . . . . . Device 13 | . . 9 19 24 15 9 9 15 10 15 18 15 5 12 16 11 14 17 Storage 6 | . 14 11 11 9 9 9 6 6 6 6 6 4 4 5 5 5 5 5 Processor 7 | . . . . 1 9 8 5 5 3 . 5 5 1 11 17 17 17 17 Hackware 1 | . . . . . . . 7 . . 4 . 12 5 2 . . . . Protection 2 | . 8 18 12 . 2 . 1 3 5 . . . 5 3 . 3 2 . Energy Gun 3 | . 11 . 9 10 13 2 . 2 1 1 . . 5 3 2 4 . . Energy Cannon 2 | . . . . . 4 5 . . . 4 5 2 . . 1 . 7 10 Ballistic Gun 4 | . 16 20 6 . . 3 2 5 1 5 4 . . . 2 3 . . Naked Turns . | . . . . . . . . . . . . . . . . . . . Heaviest Build 154 | 13 28 40 42 97 103 105 106 129 138 118 115 112 154 130 116 112 119 117 Greatest Support 192 | 40 40 40 40 52 52 67 96 144 80 80 69 30 140 192 122 86 105 105 Greatest Overweight (x) 32 | 1 . 1 2 1 4 32 3 1 1 2 11 11 2 1 10 10 2 1 Average Overweight (x) 2 | . . . . . 1 3 1 . 1 1 1 3 . . 4 6 1 1 Largest Inventory Capacity 25 | 8 15 15 15 25 25 25 25 25 25 25 25 25 25 25 25 25 25 25 Average Capacity 23 | 7 8 15 15 17 25 25 25 25 25 25 25 23 23 25 25 25 25 25 Most Carried 25 | 8 8 15 15 25 25 25 25 25 25 25 25 25 25 25 25 25 25 25 Average Carried 21 | 4 7 12 14 15 23 24 23 23 21 24 23 21 14 24 20 24 24 25 Final Capacity 25 | 8 15 15 15 25 25 25 25 25 25 25 25 5 25 25 25 25 25 25 Final Carried 25 | 6 8 15 15 25 21 25 25 23 21 25 21 5 24 25 19 25 25 25 Scrap Engine Consumption 202 | . . . . . . 31 16 39 8 9 21 19 20 15 13 4 7 . Constructs Created 19 | . . . . . . 3 1 3 1 1 2 2 3 . 1 1 1 . Constructs Modified 53 | . . . . . . 8 1 13 2 4 5 3 2 5 9 . 1 . Class Distribution -------------------- 36% | Mutant 22% | Scavenger-Mutant 17% | Scavenger-Construct 10% | Construct 5% | Commander-Construct Dominant Class ---------------- Mutant | -10/Materials Mutant | -9/Materials Mutant | -9/Mines Mutant | -8/Materials Mutant | -8/Storage Mutant | -8/Recycling Mutant | -6/Factory Construct | -6/Extension Mutant | -6/Cetus Scavenger-Construct | -6/Archives Scavenger-Construct | -6/Hub_04(d) Hacker-Mutant | -5/Factory Scavenger-Mutant | -5/Waste Mutant | -5/Factory Scavenger-Mutant | -5/Upper Caves Scavenger-Mutant | -5/Upper Caves Mutant | -5/Zhirov Mutant | -4/Proximity Caves Resources | -11 -10 -9 -9 -8 -8 -8 -6 -6 -6 -6 -6 -5 -5 -5 -5 -5 -5 -4 ----------- Run | Yrd Mat Mat Min Mat Sto Rec Fac Ext Cet Arc Hub Fac Was Fac Upp Upp Zhi Pro Matter Collected 5965 | 240 106 193 506 237 345 319 429 519 331 239 511 150 490 295 606 286 148 15 Remotely . | . . . . . . . . . . . . . . . . . . . Salvage Created 7384 | . 205 466 122 391 650 1474 641 182 4 349 322 212 483 246 1115 66 441 15 Parts 337 | . 19 32 17 27 28 61 23 6 . 21 13 9 7 12 48 5 8 1 Haulers Intercepted 2 | . . . . . . . 1 . . . 1 . . . . . . . Recyclers Shooed 7 | . . . 1 2 2 . 2 . . . . . . . . . . . Parts Field Recycled . | . . . . . . . . . . . . . . . . . . . Retrieved Matter . | . . . . . . . . . . . . . . . . . . . Parts Self-Destructed 42 | . . . . . . . . . . . . . . . 35 5 2 . Prevented 6 | . . . . . . . . . . . . . . . . 3 2 1 Kills | -11 -10 -9 -9 -8 -8 -8 -6 -6 -6 -6 -6 -5 -5 -5 -5 -5 -5 -4 ------- Run | Yrd Mat Mat Min Mat Sto Rec Fac Ext Cet Arc Hub Fac Was Fac Upp Upp Zhi Pro Combat Hostiles Destroyed 148 | . 9 11 19 13 9 15 16 4 4 1 9 3 . 5 25 4 . 1 Melee 7 | . . . . . . 4 . 2 . . 1 . . . . . . . Guns 48 | . 9 8 8 1 6 3 2 2 4 1 . 1 . . 1 2 . . Cannons 31 | . . . . . 2 7 3 . . . 1 2 . 5 10 . . 1 AOE 61 | . . 3 11 12 . 1 11 . . . 7 . . . 14 2 . . Classes Destroyed 21 | . 2 2 3 . 1 2 6 2 . 1 . . . . 1 . . 1 Worker 6 | . . . 1 1 . . . . . . 2 2 . . . . . . Builder 3 | . . . . . . 1 1 . . . . 1 . . . . . . Hauler 2 | . . . . . . . 1 . . . 1 . . . . . . . Recycler 7 | . . . . . 1 5 1 . . . . . . . . . . . Mechanic 1 | . . . . . . . 1 . . . . . . . . . . . Operator 8 | . . . . . . . . . . 8 . . . . . . . . Drone 1 | . . . . . . . . . . . . . . . . . . 1 Watcher 3 | . . 1 . . 1 . . 1 . . . . . . . . . . Swarmer 31 | . 6 . 10 . . . . 1 . . . . . . 10 4 . . Saboteur 1 | . . . . . . . 1 . . . . . . . . . . . Grunt 50 | . 3 8 2 10 5 3 4 . . . 3 3 . . 9 . . . Brawler 2 | . . . . . . . . 1 . . . . . . 1 . . . Duelist 3 | . . . . . . . . . . . . . . . 3 . . . Protector 3 | . . . . . . . 2 . . . 1 . . . . . . . Sentry 25 | . . 3 . 3 4 6 1 1 . 1 2 . . 2 2 . . . Demolisher 5 | . . . 2 . . 3 . . . . . . . . . . . . Specialist 3 | . . . . . . . 3 . . . . . . . . . . . Hunter 7 | . . . . . . 3 4 . . . . . . . . . . . Programmer 5 | . . . . . . . 2 . . . . . . 3 . . . . Behemoth 1 | . . . . . . . . 1 . . . . . . . . . . Cetus Guard 4 | . . . . . . . . . 4 . . . . . . . . . Lightning 3 | . . . . . . . . . . . 3 . . . . . . . Assembled 5 | . . . 5 . . . . . . . . . . . . . . . Best Kill Streak 12 | . 3 3 6 7 5 9 12 3 3 3 8 3 . 3 10 4 . 1 Combat Bots Only 10 | . 3 2 5 6 4 6 9 2 3 1 7 2 . 3 10 4 . 1 Max Kills in Single Turn 6 | . 1 2 3 2 1 2 6 2 1 1 3 2 . 1 3 2 . 1 Gunslinging . | . . . . . . . . . . . . . . . . . . . Exploded 4 | . . 1 3 2 . 1 4 . . . 3 . . . 3 2 . . Melee 1 | . . . . . . 1 . 1 . . 1 . . . . . . . Uniques/NPCs Destroyed . | . . . . . . . . . . . . . . . . . . . Combat | -11 -10 -9 -9 -8 -8 -8 -6 -6 -6 -6 -6 -5 -5 -5 -5 -5 -5 -4 -------- Run | Yrd Mat Mat Min Mat Sto Rec Fac Ext Cet Arc Hub Fac Was Fac Upp Upp Zhi Pro Hostile Shots Fired 1425 | . 47 87 66 55 66 90 227 121 134 23 135 142 . 77 146 9 . . Missed 362 | . 10 27 8 20 11 15 68 34 34 5 48 30 . 18 31 3 . . Damage Taken 19684 | . 368 642 970 532 844 982 2397 1275 2911 484 2039 2089 . 1475 2412 92 . 172 Core 2109 | . 44 35 62 89 103 69 176 118 166 46 194 525 . 181 242 13 . 46 Absorbed by Shields 892 | . . 204 189 90 . . 137 231 41 . . . . . . . . . Reduced by Siege Mode 269 | . . . . . . . . . . 20 . . . 104 141 4 . . Redirected to Shielding 23 | . 9 8 3 . . . . . . . . . . . . 3 . . Ignored by Resistances 123 | . . . . . . . . . . . 11 112 . . . . . . Regen/Repaired (Parts) 3581 | . . . . . . 286 425 658 507 252 257 243 350 70 533 . . . Core Remaining (%) 65 | 100 82 . 75 . . 52 . . . . 17 . . . . . . . Volleys Fired 566 | . 33 58 32 23 39 25 32 27 27 60 42 26 9 30 54 10 28 11 Largest 2 | . 2 2 2 2 2 2 2 2 2 2 2 2 2 2 2 1 1 2 Hottest 182 | . 90 40 105 110 115 160 60 130 108 146 155 131 182 97 108 90 81 81 Shots Fired 860 | . 66 112 44 35 75 48 38 36 54 84 57 36 13 51 61 10 28 12 Gun 523 | . 66 108 27 12 58 21 15 28 54 84 17 8 13 . 5 7 . . Cannon 252 | . . . . . 17 27 19 8 . . 21 28 . 51 42 2 28 9 Launcher 85 | . . 4 17 23 . . 4 . . . 19 . . . 14 1 . 3 Special . | . . . . . . . . . . . . . . . . . . . Kinetic 397 | . 58 108 11 . . 16 34 24 34 . . 17 . 51 44 . . . Thermal 254 | . 8 . 12 . 17 19 . 12 20 84 38 19 13 . 3 9 . . Explosive 85 | . . 4 17 23 . . 4 . . . 19 . . . 14 1 . 3 Electromagnetic 124 | . . . 4 12 58 13 . . . . . . . . . . 28 9 Robot Hit Streak 25 | . 8 13 6 10 7 11 19 9 19 7 9 4 13 7 24 9 25 1 Robot Miss Streak 6 | . 3 2 3 1 3 3 3 2 3 3 6 2 1 3 2 1 1 5 Penetration Max 1 | . . . . . . . . 1 . . . . . 1 . . . . Secondary Targets 4 | . . 1 . . . . . 1 2 . . . . . . . . . Max Gunslinging Chain 1 | . . 1 . . . . . 1 1 . . . . . . . . . Shots Hit Robots 591 | . 49 79 27 13 47 52 29 26 53 50 29 17 11 30 46 5 27 1 Core Hits 464 | . 13 34 30 35 21 27 66 13 58 18 60 13 5 12 34 4 21 . Critical Kills 2 | . 1 . 1 . . . . . . . . . . . . . . . Critical Parts Destroyed 3 | . . 2 . . . . . . . . . . . 1 . . . . Critical Strikes 21 | . 1 2 1 1 3 2 1 . 1 3 . . 1 1 1 2 1 . Burn 8 | . . . . . . . . . 1 3 . . 1 . 1 2 . . Destroy 5 | . 1 2 1 . . . . . . . . . . 1 . . . . Blast 1 | . . . . . . . 1 . . . . . . . . . . . Corrupt 5 | . . . . 1 3 . . . . . . . . . . . 1 . Sever 2 | . . . . . . 2 . . . . . . . . . . . . Melee Attacks 59 | . . . . . . 17 . 37 . . 2 3 . . . . . . Impact 42 | . . . . . . . . 37 . . 2 3 . . . . . . Slashing 17 | . . . . . . 17 . . . . . . . . . . . . Piercing . | . . . . . . . . . . . . . . . . . . . Sneak Attacks 9 | . . . . . . 9 . . . . . . . . . . . . Combat Hostiles 7 | . . . . . . 7 . . . . . . . . . . . . Follow-up Attacks . | . . . . . . . . . . . . . . . . . . . Damage Inflicted 23594 | . 426 872 1265 1541 1009 2245 3213 1173 1533 1361 2298 1073 239 1078 3569 285 352 62 Guns 7087 | . 426 651 254 161 741 282 259 825 1533 1361 76 150 239 . 22 107 . . Cannons 5892 | . . . . . 255 570 495 204 . . 416 391 . 1078 2069 . 352 62 Explosions 9128 | . . 221 1008 1380 . 199 2459 . . . 1711 494 . . 1478 178 . . Melee 1289 | . . . . . . 1194 . . . . 95 . . . . . . . Ramming 198 | . . . 3 . 13 . . 144 . . . 38 . . . . . . Kinetic 7284 | . 366 651 97 . . 214 754 716 1081 . . 258 . 1078 2069 . . . Thermal 4592 | . 60 . 146 139 255 586 74 313 452 1361 555 283 239 . 22 107 . . Explosive 8513 | . . 221 1008 1241 . . 2385 . . . 1648 354 . . 1478 178 . . Electromagnetic 1718 | . . . 11 161 741 251 . . . . . 140 . . . . 352 62 Impact 95 | . . . . . . . . . . . 95 . . . . . . . Slashing 1194 | . . . . . . 1194 . . . . . . . . . . . . Piercing . | . . . . . . . . . . . . . . . . . . . Highest Corruption 16 | . . . . . . 2 15 15 15 15 16 3 3 6 6 6 . . Average Corruption 7 | . . . . . . 1 9 15 15 7 14 1 3 3 6 3 . . Corruption Purged 21 | . . . . . . . . . . 15 . . . . . 6 . . Corruption Blocked . | . . . . . . . . . . . . . . . . . . . Effects 260 | . . . . . . 17 22 52 31 19 12 2 15 18 66 6 . . Message Errors 64 | . . . . . . 2 5 16 6 6 2 . 5 4 16 2 . . Matter Fused 65 | . . . . . . 3 5 8 8 5 2 . 6 5 20 3 . . Heat Flow Errors 30 | . . . . . . 2 1 9 6 . 2 . 1 2 7 . . . Energy Discharges 34 | . . . . . . 1 3 8 3 5 1 1 1 3 7 1 . . Parts Rejected 5 | . . . . . . . . 1 1 . 2 1 . . . . . . Parts Fused 2 | . . . . . . . 1 . 1 . . . . . . . . . Data Loss (minor) 32 | . . . . . . 5 4 6 4 1 1 . 2 3 6 . . . Data Loss (major) 12 | . . . . . . 4 1 2 1 . 1 . . 1 2 . . . Misfires 3 | . . . . . . . . . . . . . . . 3 . . . Alerts 3 | . . . . . . . . 1 . 1 . . . . 1 . . . Misdirections 3 | . . . . . . . . 1 1 1 . . . . . . . . Weapon Failures 7 | . . . . . . . 2 . . . 1 . . . 4 . . . Overload Shots . | . . . . . . . . . . . . . . . . . . . Overflow Damage 966 | . . 12 81 5 . 317 117 10 . . 11 6 . . 270 12 71 54 Projectiles 371 | . . . . . . 32 49 . . . . . . . 187 . 71 32 Explosions 292 | . . 12 81 5 . 3 68 . . . . 6 . . 83 12 . 22 Melee 303 | . . . . . . 282 . 10 . . 11 . . . . . . . Knockbacks 20 | . . . . . . . 3 . . . . 3 . 3 11 . . . Impact . | . . . . . . . . . . . . . . . . . . . Kinetic 18 | . . . . . . . 3 . . . . 3 . 3 9 . . . Secondary 2 | . . . . . . . . . . . . . . . 2 . . . Self-Inflicted Damage 803 | . . . 44 76 . . 231 . . . 72 61 . . 140 4 . 175 Shots 27 | . . . 3 3 . . 10 . . . 2 1 . . 4 1 . 3 Rammed 9 | . . . 1 . . . . . . . . 8 . . . . . . Targets Rammed 25 | . . . 1 1 3 . . 12 . . . 8 . . . . . . Kicked 16 | . . . . 1 3 . . 12 . . . . . . . . . . Crushed . | . . . . . . . . . . . . . . . . . . . Highest Temperature 401 | . 120 26 108 119 225 255 311 273 237 96 224 268 401 122 239 168 64 . Average Temperature 71 | . 28 8 36 47 111 75 71 94 96 17 71 83 156 50 86 69 28 . Received Heat Transfer 4035 | . 144 276 55 258 423 234 576 214 360 99 211 633 . 153 399 . . . Effects 2 | . . . . . . . . . . . . . 2 . . . . . Shutdowns 1 | . . . . . . . . . . . . . 1 . . . . . Energy Bleed 1 | . . . . . . . . . . . . . 1 . . . . . Siege Activations 12 | . . . . . . . . . . 1 . . . 4 3 1 . 3 Total Turns 200 | . . . . . . . . . . 9 . . . 53 82 12 . 44 Longest Duration 37 | . . . . . . . . . . 9 . . . 25 35 12 . 37 Robots Corrupted 3 | . . . . . 2 . . . . . . . . . . . 1 . Combat Hostiles 2 | . . . . . 1 . . . . . . . . . . . 1 . Parts Fried 13 | . . . . . 11 1 . . . . . . . . . . . 1 Impact Corruptions 2 | . . . . . . . . 1 . . 1 . . . . . . . Robots Melted . | . . . . . . . . . . . . . . . . . . . Combat Hostiles . | . . . . . . . . . . . . . . . . . . . Parts Melted 10 | . 1 . . . . 3 . . . 2 . . 1 . . 3 . . Heat Transferred 7707 | . 161 . 333 150 407 1150 50 150 1675 2064 227 259 481 . 150 450 . . Parts Sabotaged 1 | . . . . . . . . . . . . 1 . . . . . . Parts Stolen . | . . . . . . . . . . . . . . . . . . . Parts Stripped . | . . . . . . . . . . . . . . . . . . . Power Chain Reactions 3 | . . . . 1 . 1 . . . . 1 . . . . . . . Alert | -11 -10 -9 -9 -8 -8 -8 -6 -6 -6 -6 -6 -5 -5 -5 -5 -5 -5 -4 ------- Run | Yrd Mat Mat Min Mat Sto Rec Fac Ext Cet Arc Hub Fac Was Fac Upp Upp Zhi Pro Peak Influence 1200 | . 352 321 244 529 371 223 566 1200 640 458 999 507 77 165 . . . . Initial 632 | . . 63 72 71 144 83 350 262 632 204 . 399 77 . . . . . Average 233 | . 148 188 109 342 219 83 315 739 485 88 562 375 34 40 . . . . Maximum Alert Level 4 | . 1 1 1 2 1 1 2 4 2 2 3 2 . . . . . . Low Security (%) 56 | 100 65 52 66 22 34 95 12 . . 78 14 7 100 100 . . . . Level 1 23 | . 34 47 33 30 65 4 77 25 27 14 12 47 . . . . . . Level 2 12 | . . . . 46 . . 9 16 72 7 41 45 . . . . . . Level 3 6 | . . . . . . . . 45 . . 30 . . . . . . . Level 4 1 | . . . . . . . . 12 . . . . . . . . . . Level 5 . | . . . . . . . . . . . . . . . . . . . High Security . | . . . . . . . . . . . . . . . . . . . Max Security . | . . . . . . . . . . . . . . . . . . . Squads Dispatched 25 | . 1 2 . 3 3 . 1 4 . . 6 3 . 2 . . . . Investigation 5 | . 1 1 . 1 1 . 1 . . . . . . . . . . . Extermination 1 | . . . . . . . . . . . . . . 1 . . . . Reinforcement 12 | . . 1 . 2 2 . . 1 . . 3 2 . 1 . . . . Assault 4 | . . . . . . . . 3 . . . 1 . . . . . . Garrison 3 | . . . . . . . . . . . 3 . . . . . . . Intercept . | . . . . . . . . . . . . . . . . . . . Searches Triggered . | . . . . . . . . . . . . . . . . . . . Construction Impeded 3 | . . . . . . . . 1 . . 2 . . . . . . . Haulers Reinforced . | . . . . . . . . . . . . . . . . . . . Active Scanning Responses . | . . . . . . . . . . . . . . . . . . . Cargo Convoy Interrupts 1 | . . . . . . . 1 . . . . . . . . . . . Stealth | -11 -10 -9 -9 -8 -8 -8 -6 -6 -6 -6 -6 -5 -5 -5 -5 -5 -5 -4 --------- Run | Yrd Mat Mat Min Mat Sto Rec Fac Ext Cet Arc Hub Fac Was Fac Upp Upp Zhi Pro Distress Signals 17 | . . 2 . . 3 . 2 1 2 . 5 1 . 1 . . . . Communications Jammed 2 | . . . . . . . . . . . . . . . . . . 2 Distress Signals . | . . . . . . . . . . . . . . . . . . . Times Spotted 297 | . 16 24 20 18 15 13 24 34 9 28 25 27 . 7 29 4 . 4 Peak Tracking Total 17 | . 5 6 5 5 4 6 9 11 5 2 7 17 . 4 10 4 . 2 Tactical Retreats 12 | . 3 1 2 . . . . . . . 1 2 . . 3 . . . Traps | -11 -10 -9 -9 -8 -8 -8 -6 -6 -6 -6 -6 -5 -5 -5 -5 -5 -5 -4 ------- Run | Yrd Mat Mat Min Mat Sto Rec Fac Ext Cet Arc Hub Fac Was Fac Upp Upp Zhi Pro Traps Triggered 11 | . . 1 . 1 . . 3 3 . . . 1 . 2 . . . . Indirectly . | . . . . . . . . . . . . . . . . . . . Trap Hack Attempts . | . . . . . . . . . . . . . . . . . . . Triggered . | . . . . . . . . . . . . . . . . . . . Disarmed . | . . . . . . . . . . . . . . . . . . . Reprogrammed . | . . . . . . . . . . . . . . . . . . . Reused . | . . . . . . . . . . . . . . . . . . . Traps Extracted . | . . . . . . . . . . . . . . . . . . . Installed . | . . . . . . . . . . . . . . . . . . . Triggered 2 | . . . . . . . . . . . . . . . . 2 . . Objects Rigged 5 | . . . . . . . . . . . . 5 . . . . . . Exploded 2 | . . . . . . . . . . . . 2 . . . . . . Machines | -11 -10 -9 -9 -8 -8 -8 -6 -6 -6 -6 -6 -5 -5 -5 -5 -5 -5 -4 ---------- Run | Yrd Mat Mat Min Mat Sto Rec Fac Ext Cet Arc Hub Fac Was Fac Upp Upp Zhi Pro Machines Disabled 43 | . . . 1 1 1 . 6 7 . 2 20 4 . . . . 1 . Max in Single Turn 6 | . . . 1 1 1 . 6 1 . 1 1 4 . . . . 1 . Network Hub 2 | . . . . . . . . . . . 2 . . . . . . . Machines Repaired . | . . . . . . . . . . . . . . . . . . . Machines Dismantled . | . . . . . . . . . . . . . . . . . . . Machines Sabotaged . | . . . . . . . . . . . . . . . . . . . Overloaded Fab Kills . | . . . . . . . . . . . . . . . . . . . Hacking | -11 -10 -9 -9 -8 -8 -8 -6 -6 -6 -6 -6 -5 -5 -5 -5 -5 -5 -4 --------- Run | Yrd Mat Mat Min Mat Sto Rec Fac Ext Cet Arc Hub Fac Was Fac Upp Upp Zhi Pro Machines Accessed 62 | . 4 3 . 1 5 11 3 17 2 . 3 2 . 2 . 1 8 . Terminals 43 | . 3 2 . 1 4 6 3 16 2 . 3 2 . 1 . . . . Fabricators 1 | . . . . . . . . . . . . . . 1 . . . . Repair Stations . | . . . . . . . . . . . . . . . . . . . Recycling Units 9 | . 1 1 . . 1 5 . 1 . . . . . . . . . . Scanalyzers . | . . . . . . . . . . . . . . . . . . . Garrison Access . | . . . . . . . . . . . . . . . . . . . Total Hacks 190 | . 6 7 . 2 11 37 5 36 4 . 7 16 . 11 . 1 47 . Successful 102 | . 2 3 . 1 5 16 1 11 1 . 2 9 . 3 . 1 47 . Failed 88 | . 4 4 . 1 6 21 4 25 3 . 5 7 . 8 . . . . Catastrophic 16 | . 2 . . 1 . 3 . 5 1 . 1 . . 3 . . . . Database Lockouts . | . . . . . . . . . . . . . . . . . . . Manual 54 | . 6 3 . 1 4 22 4 3 1 . 5 3 . 2 . . . . Terminals 118 | . 5 6 . 2 9 23 5 34 4 . 7 16 . 7 . . . . Fabricators 4 | . . . . . . . . . . . . . . 4 . . . . Repair Stations . | . . . . . . . . . . . . . . . . . . . Recycling Units 20 | . 1 1 . . 2 14 . 2 . . . . . . . . . . Scanalyzers . | . . . . . . . . . . . . . . . . . . . Garrison Access . | . . . . . . . . . . . . . . . . . . . Terminal Hacks 88 | . 1 2 . 1 4 9 1 10 1 . 1 7 . 3 . 1 47 . Record 36 | . . . . . . . . . 1 . . . . . . . 35 . Part Schematic 10 | . 1 . . . . 5 . . . . . . . . . . 4 . Robot Analysis 5 | . . . . . . . . 1 . . . . . . . . 4 . Prototype ID Bank 7 | . . . . . 1 2 . . . . . . . . . . 4 . Open Door 11 | . . . . . 1 . 1 8 . . . . . . . 1 . . Branch Access Points 5 | . . 1 . 1 1 . . . . . . 1 . 1 . . . . Terminal Index 1 | . . . . . . . . . . . . . . 1 . . . . Alert Level 3 | . . . . . . . . 1 . . . 1 . 1 . . . . Unreport Threat 5 | . . . . . . 2 . . . . . 3 . . . . . . Zone Layout 5 | . . 1 . . 1 . . . . . 1 2 . . . . . . Fabricator Hacks . | . . . . . . . . . . . . . . . . . . . Repair Station Hacks . | . . . . . . . . . . . . . . . . . . . Recycling Unit Hacks 4 | . . . . . . 3 . 1 . . . . . . . . . . Retrieve Components 4 | . . . . . . 3 . 1 . . . . . . . . . . Scanalyzer . | . . . . . . . . . . . . . . . . . . . Garrison Access Hacks . | . . . . . . . . . . . . . . . . . . . Unauthorized Hacks 10 | . 1 1 . . 1 4 . . . . 1 2 . . . . . . Terminals 3 | . . . . . . . . . . . 1 2 . . . . . . Botnet 2 | . . . . . . . . . . . 1 1 . . . . . . Detonate 1 | . . . . . . . . . . . . 1 . . . . . . Fabricators . | . . . . . . . . . . . . . . . . . . . Repair Stations . | . . . . . . . . . . . . . . . . . . . Recycling Units 7 | . 1 1 . . 1 4 . . . . . . . . . . . . Tunnel 7 | . 1 1 . . 1 4 . . . . . . . . . . . . Scanalyzers . | . . . . . . . . . . . . . . . . . . . Garrison Access . | . . . . . . . . . . . . . . . . . . . Data Cores Recovered . | . . . . . . . . . . . . . . . . . . . Used . | . . . . . . . . . . . . . . . . . . . Hacking Detections 42 | . 3 2 . 1 5 7 3 11 3 . 3 2 . 2 . . . . Full Trace Events 3 | . . . . . . 3 . . . . . . . . . . . . Feedback Events 2 | . . . . . . 2 . . . . . . . . . . . . Corruption 2 | . . . . . . 2 . . . . . . . . . . . . Feedback Blocked . | . . . . . . . . . . . . . . . . . . . Robot Schematics Acquired . | . . . . . . . . . . . . . . . . . . . Robots Built . | . . . . . . . . . . . . . . . . . . . Authchips . | . . . . . . . . . . . . . . . . . . . Time . | . . . . . . . . . . . . . . . . . . . Total Robot Build Rating . | . . . . . . . . . . . . . . . . . . . Part Schematics Acquired 10 | . 1 . . . . 5 . . . . . . . . . . 4 . Parts Built . | . . . . . . . . . . . . . . . . . . . Authchips . | . . . . . . . . . . . . . . . . . . . Time . | . . . . . . . . . . . . . . . . . . . Total Part Build Rating . | . . . . . . . . . . . . . . . . . . . Parts Repaired . | . . . . . . . . . . . . . . . . . . . Time . | . . . . . . . . . . . . . . . . . . . Parts Recycled . | . . . . . . . . . . . . . . . . . . . Recycled Matter . | . . . . . . . . . . . . . . . . . . . Retrieved Matter . | . . . . . . . . . . . . . . . . . . . Retrieved Components 18 | . . . . . . 14 . 4 . . . . . . . . . . Parts Scanalyzed . | . . . . . . . . . . . . . . . . . . . Part Schematics Acquired . | . . . . . . . . . . . . . . . . . . . Parts Damaged . | . . . . . . . . . . . . . . . . . . . Bothacking | -11 -10 -9 -9 -8 -8 -8 -6 -6 -6 -6 -6 -5 -5 -5 -5 -5 -5 -4 ------------ Run | Yrd Mat Mat Min Mat Sto Rec Fac Ext Cet Arc Hub Fac Was Fac Upp Upp Zhi Pro Used RIF Installer . | . . . . . . . . . . . . . . . . . . . Robots Hacked . | . . . . . . . . . . . . . . . . . . . Non-combat . | . . . . . . . . . . . . . . . . . . . Combat . | . . . . . . . . . . . . . . . . . . . Robot Hacks Applied . | . . . . . . . . . . . . . . . . . . . Relay Couplers Released . | . . . . . . . . . . . . . . . . . . . Fabnet Peak Effective % . | . . . . . . . . . . . . . . . . . . . Robots Rewired 13 | . . . . . . 6 . 5 . . . . . . 2 . . . Allies Hacked . | . . . . . . . . . . . . . . . . . . . Hacks Repelled . | . . . . . . . . . . . . . . . . . . . Allies | -11 -10 -9 -9 -8 -8 -8 -6 -6 -6 -6 -6 -5 -5 -5 -5 -5 -5 -4 -------- Run | Yrd Mat Mat Min Mat Sto Rec Fac Ext Cet Arc Hub Fac Was Fac Upp Upp Zhi Pro Total Allies 36 | . . . . . . 6 . 23 5 . . . . . 2 . . . Largest Group 15 | . . . . . . 5 5 15 8 5 3 1 . . 2 . . . Highest-Rated Group 599 | . . . . . . 83 83 599 499 398 288 96 . . 79 . . . Highest-Rated Ally 159 | . . . . . . 27 27 159 123 96 96 96 . . 49 . . . Total Orders 36 | . . . . . . 2 . 3 . . 21 3 . 5 . . . 2 STAY 2 | . . . . . . . . . . . 2 . . . . . . . FOLLOW 3 | . . . . . . 1 . . . . 2 . . . . . . . PICKUP 1 | . . . . . . 1 . . . . . . . . . . . . EXPLORE 17 | . . . . . . . . 1 . . 10 3 . 2 . . . 1 RETURN 13 | . . . . . . . . 2 . . 7 . . 3 . . . 1 Ally Attacks 332 | . . . . . . 2 2 208 41 27 40 6 . . 6 . . . Total Damage 11164 | . . . . . . 53 15 5224 1341 1211 2886 282 . . 152 . . . Kills 70 | . . . . . . 1 . 35 7 3 22 2 . . . . . . Allies Corrupted 3 | . . . . . . . . . . . 2 1 . . . . . . Allies Melted 1 | . . . . . . . . . . . . 1 . . . . . . Intel | -11 -10 -9 -9 -8 -8 -8 -6 -6 -6 -6 -6 -5 -5 -5 -5 -5 -5 -4 ------- Run | Yrd Mat Mat Min Mat Sto Rec Fac Ext Cet Arc Hub Fac Was Fac Upp Upp Zhi Pro Robot Analysis Total 5 | . . . . . . . . 1 . . . . . . . . 4 . Derelict Logs Recovered 3 | . . . 1 . . . . . . . . . . . 1 . . 1 Drone Launches 25 | . . . . . . . . 2 . . 14 3 . 4 . . . 2 Drone Recoveries 15 | . . . . . . . . 2 . . 8 1 . 3 . . . 1 Exploration | -11 -10 -9 -9 -8 -8 -8 -6 -6 -6 -6 -6 -5 -5 -5 -5 -5 -5 -4 ------------- Run | Yrd Mat Mat Min Mat Sto Rec Fac Ext Cet Arc Hub Fac Was Fac Upp Upp Zhi Pro Turns Passed 19553 | 67 414 850 1033 448 594 1843 751 1407 730 3580 824 395 888 722 2362 1505 654 486 Spaces Moved 7079 | 38 184 340 613 261 194 649 417 570 208 372 392 205 378 347 932 613 214 152 Core 81 | 8 . . . . . 3 . . . . . 39 31 . . . . . Treads 2582 | 30 184 129 209 . . 292 . . 45 186 . 1 330 347 256 207 214 152 Legs 1778 | . . 211 . 163 160 18 162 564 133 66 . . 17 . 284 . . . Wheels 2017 | . . . 404 98 34 235 192 6 30 . 55 165 . . 392 406 . . Hover 621 | . . . . . . 101 63 . . 120 337 . . . . . . . Flight . | . . . . . . . . . . . . . . . . . . . Fastest Speed 50 | 50 160 160 100 85 145 145 96 103 230 136 110 50 50 156 156 230 253 268 Average Speed 189 | 138 160 178 140 120 200 228 137 149 232 215 145 121 208 159 229 237 261 268 Slowest Speed 1650 | 160 160 240 240 190 260 1650 274 230 240 352 337 507 320 223 480 253 362 268 Overloaded Moves . | . . . . . . . . . . . . . . . . . . . Propulsion Burnouts . | . . . . . . . . . . . . . . . . . . . Robots Hopped 5 | . . . . . . . . 5 . . . . . . . . . . Cave-ins Triggered . | . . . . . . . . . . . . . . . . . . . Exploration Rate (%) 53 | 4 48 26 93 18 48 99 12 74 68 96 53 15 95 12 96 70 62 27 Regions Visited 18 Branch Regions 11 Pre-discovered Areas 11 | . 1 1 . . 1 4 . . . . . . . . . . 3 1 Known Exits Taken 8 | . . 1 . 1 1 . . . . . 1 . . 1 1 1 1 . Unknown Exits Taken 8 | 1 1 . 1 . . 1 1 1 1 1 . . . . . . . . Scrap Searched 9 | . . . 2 . . . . . . . . . . . 4 3 . . Spaces Dug 140 | . . . 13 46 1 . 5 4 . . 10 11 . 4 . 23 . 23 Terrain Destroyed 641 | . . 22 86 125 1 7 89 7 . 2 111 54 . 13 78 23 . 23 Melee 7 | . . . . . . . . 4 . . . 3 . . . . . . Projectile 67 | . . . . . 1 4 9 3 . 2 15 12 . 13 6 2 . . AOE 567 | . . 22 86 125 . 3 80 . . . 96 39 . . 72 21 . 23 Terrain Rammed . | . . . . . . . . . . . . . . . . . . . Walls Destroyed . | . . . . . . . . . . . . . . . . . . . Machines Disabled . | . . . . . . . . . . . . . . . . . . . Actions | -11 -10 -9 -9 -8 -8 -8 -6 -6 -6 -6 -6 -5 -5 -5 -5 -5 -5 -4 --------- Run | Yrd Mat Mat Min Mat Sto Rec Fac Ext Cet Arc Hub Fac Was Fac Upp Upp Zhi Pro Total 12290 | 51 249 487 735 364 318 947 546 1028 400 3080 568 306 469 473 1113 653 285 218 Wait 3457 | . 22 39 59 9 52 46 17 223 131 2600 75 9 10 33 53 9 19 51 Move 7055 | 37 183 339 612 260 193 648 416 562 207 371 391 205 377 346 931 612 213 152 Hop 2 | . . . . . . . . 2 . . . . . . . . . . Pick Up 285 | 8 4 20 10 31 8 25 27 32 4 12 14 15 25 22 12 12 4 . Fast Attach 81 | 4 1 3 2 6 1 4 2 2 10 9 5 1 15 4 6 . 6 . Attach 136 | 2 . 6 8 4 9 13 16 18 7 6 10 5 8 9 12 1 2 . Detach 47 | . . . . . . 9 2 9 5 5 2 3 4 2 5 . 1 . Swap 137 | . 3 12 8 8 9 8 12 5 2 4 17 18 1 5 17 3 1 4 Drop 244 | . 3 10 3 22 4 25 22 37 7 13 10 13 18 22 18 6 11 . Fire 566 | . 33 58 32 23 39 25 32 27 27 60 42 26 9 30 54 10 28 11 Melee 59 | . . . . . . 17 . 37 . . 2 3 . . . . . . Ram 8 | . . . . . . . . . . . . 8 . . . . . . Kick 16 | . . . . 1 3 . . 12 . . . . . . . . . . Crush 1 | . . . 1 . . . . . . . . . . . . . . . Escape Stasis 9 | . . . . . . . . 9 . . . . . . . . . . Rewire 187 | . . . . . . 127 . 53 . . . . 2 . 5 . . . Trap . | . . . . . . . . . . . . . . . . . . . Miscellaneous . | . . . . . . . . . . . . . . . . . . . Route ------- -11/Scrapyard -10/Materials (discovered 2 exits: *Mat x2) -9/Materials -9/Mines (discovered 2 exits: *Mat x2) -8/Materials -8/Storage -8/Recycling -6/Factory -6/Extension (discovered 2 exits: *Fac / *Cet) -6/Cetus (discovered 2 exits: *Fac / [*Arc]) -6/Archives (discovered 3 exits: *Fac / *Hub x2) -6/Hub_04(d) (discovered 2 exits: *Fac x2) -5/Factory (discovered 2 exits: Upp x2) -5/Waste -5/Factory (discovered 2 exits: *Upp x2) -5/Upper Caves -5/Upper Caves (discovered 2 exits: *Fac / *Zhi) -5/Zhirov -4/Proximity Caves History --------- Turn | Location | Event 16 | -11/Scrapyard | Discovered new exit (range 15) 68 | -11/Scrapyard | Entered Materials 161 | -10/Materials | Discovered new exit (range 8) 315 | -10/Materials | Build established: Mutant 456 | -10/Materials | Discovered new exit (range 10) 482 | -10/Materials | Entered another Materials area 482 | -9/Materials | Evolved 2 slots: Utility x2 984 | -9/Materials | Identified exit to Mines 1332 | -9/Materials | Entered Mines 1470 | -9/Mines | Learned Materials garrison access intel 1556 | -9/Mines | Assembled infested the area 1561 | -9/Mines | Assisted by a Guerilla fighting off Assembled 1571 | -9/Mines | Found a hidden stash of uninstalled traps 1963 | -9/Mines | Lost 9 parts (1p4n2u2w) 2301 | -9/Mines | Discovered new exit (range 7) 2347 | -9/Mines | Discovered new exit (range 5) 2365 | -9/Mines | Entered Materials 2365 | -8/Materials | Evolved 2 slots: Propulsion x2 2366 | -8/Materials | Loaded intel: 1 garrison access location 2437 | -8/Materials | Discovered new exit (range 12) 2732 | -8/Materials | Identified exit to Storage 2813 | -8/Materials | Entered Storage 2930 | -8/Storage | Found Prototype Launcher 2930 | -8/Storage | Identified Scatter Rocket Array 3066 | -8/Storage | Identified exit to Recycling 3258 | -8/Storage | Lost 5 parts (2n1u2w) 3259 | -8/Storage | Used back door to open Recycling access 3407 | -8/Storage | Entered Recycling 3408 | -8/Recycling | Found Scrap Engine 3689 | -8/Recycling | Discovered new exit (range 9) 4452 | -8/Recycling | Lost 3 parts (1p2w) 4490 | -8/Recycling | Build established: Construct 4802 | -8/Recycling | Build established: Commander-Construct 5250 | -8/Recycling | Entered Factory 5250 | -6/Factory | Accompanied by 5 allies 5250 | -6/Factory | Evolved 4 slots: Propulsion x2, Utility x2 5590 | -6/Factory | Lost 3 allies 5845 | -6/Factory | Spotted B-75 Beast 5918 | -6/Factory | Discovered new exit (range 16) 5921 | -6/Factory | Cargo convoy interrupted 5922 | -6/Factory | System corruption reached 10% 5951 | -6/Factory | Destroyed 9 combat bots 6001 | -6/Factory | Entered Extension 6028 | -6/Extension | Lost 3 parts (1p2n) 6148 | -6/Extension | Rescued a captive Derelict 6172 | -6/Extension | Rescued a captive Derelict 6192 | -6/Extension | Rescued a captive Derelict 6231 | -6/Extension | Rescued a captive Derelict 6232 | -6/Extension | Rescued a captive Derelict 6307 | -6/Extension | Rescued a captive Derelict 6307 | -6/Extension | Rescued a captive Derelict 6344 | -6/Extension | Rescued a captive Derelict 6344 | -6/Extension | Rescued a captive Derelict 6411 | -6/Extension | Rescued a captive Derelict 6416 | -6/Extension | Lost 3 allies 6450 | -6/Extension | Rescued A7 6472 | -6/Extension | Rescued a captive Derelict 6478 | -6/Extension | Build established: Construct 6546 | -6/Extension | Spotted B-75 Beast 6556 | -6/Extension | Spotted B-75 Beast 6578 | -6/Extension | Destroyed B-75 Beast 6592 | -6/Extension | Allies destroyed B-75 Beast 6701 | -6/Extension | First assault squad dispatched 6751 | -6/Extension | Rescued a captive Derelict 6820 | -6/Extension | Rescued a captive Derelict 6822 | -6/Extension | Rescued a captive Derelict 7077 | -6/Extension | Rescued a captive Derelict 7106 | -6/Extension | Rescued a captive Derelict 7137 | -6/Extension | Rescued a captive Derelict 7189 | -6/Extension | Discovered new exit (range 10) 7191 | -6/Extension | Discovered new exit (range 6) 7379 | -6/Extension | Build established: Commander-Construct 7408 | -6/Extension | Entered Cetus 7408 | -6/Cetus | Accompanied by 8 allies (A7) 7413 | -6/Cetus | Acquired a Cetus Manufacturing Module code from A7 7431 | -6/Cetus | Spotted Cetus Guard 7431 | -6/Cetus | Spotted Cetus Guard 7432 | -6/Cetus | Spotted Cetus Guard 7437 | -6/Cetus | Lost 5 allies 7447 | -6/Cetus | Spotted Cetus Guard 7481 | -6/Cetus | Destroyed Cetus Guard 7482 | -6/Cetus | Lost 7 allies 7491 | -6/Cetus | Destroyed Cetus Guard 7506 | -6/Cetus | Destroyed Cetus Guard 7513 | -6/Cetus | Core integrity fell below 50% 7532 | -6/Cetus | Destroyed Cetus Guard 7549 | -6/Cetus | Lost 4 parts (1p1u2w) 7583 | -6/Cetus | Extracted ID and sensor layout for unrecognized location from A7's data core 7733 | -6/Cetus | Started Cetus Manufacturing Module 7745 | -6/Cetus | Build established: Mutant 7758 | -6/Cetus | Manufactured an Enhanced Grunt 7783 | -6/Cetus | Manufactured an Enhanced Grunt 7808 | -6/Cetus | Manufactured an Enhanced Grunt 7833 | -6/Cetus | Manufactured an Enhanced Grunt 7858 | -6/Cetus | Manufactured an Enhanced Grunt 7931 | -6/Cetus | Discovered new exit (range 16) 7980 | -6/Cetus | Spotted Cetus Guard 7980 | -6/Cetus | Spotted Cetus Guard 7989 | -6/Cetus | Spotted Cetus Guard 7989 | -6/Cetus | Spotted Cetus Guard 7996 | -6/Cetus | Discovered new exit (range 15) 8001 | -6/Cetus | Allies destroyed Cetus Guard 8006 | -6/Cetus | Allies destroyed Cetus Guard 8007 | -6/Cetus | Allies destroyed Cetus Guard 8010 | -6/Cetus | Allies destroyed Cetus Guard 8012 | -6/Cetus | Met Revision 17 8138 | -6/Cetus | Entered Archives 8138 | -6/Archives | Accompanied by 5 allies 8216 | -6/Archives | Discovered new exit (range 16) 8403 | -6/Archives | Discovered new exit (range 16) 8719 | -6/Archives | Discovered new exit (range 15) 8858 | -6/Archives | Build established: Construct 9399 | -6/Archives | Build established: Scavenger-Construct 11718 | -6/Archives | Entered Hub_04(d) 11718 | -6/Hub_04(d) | Accompanied by 3 allies 11808 | -6/Hub_04(d) | Discovered new exit (range 13) 12106 | -6/Hub_04(d) | Discovered new exit (range 15) 12287 | -6/Hub_04(d) | Network Hub disabled 12297 | -6/Hub_04(d) | Spotted Lightning 12299 | -6/Hub_04(d) | Spotted Lightning 12302 | -6/Hub_04(d) | Spotted Lightning 12303 | -6/Hub_04(d) | Garrison activated, responded to threat 12319 | -6/Hub_04(d) | Destroyed Lightning 12325 | -6/Hub_04(d) | Destroyed Lightning 12332 | -6/Hub_04(d) | Lost 3 allies 12332 | -6/Hub_04(d) | Destroyed Lightning 12366 | -6/Hub_04(d) | Destroyed 7 combat bots 12378 | -6/Hub_04(d) | Core integrity fell below 20% 12392 | -6/Hub_04(d) | Lost 12 parts (5n3u4w) 12406 | -6/Hub_04(d) | Identified exit to Factory 12425 | -6/Hub_04(d) | Network Hub disabled 12542 | -6/Hub_04(d) | Entered Factory 12542 | -5/Factory | Accompanied by 1 ally 12542 | -5/Factory | Evolved 2 slots: Utility x2 12559 | -5/Factory | Identified exit to Upper Caves 12842 | -5/Factory | First assault squad dispatched 12882 | -5/Factory | Build established: Hacker-Mutant 12937 | -5/Factory | Core integrity fell below 50% 12937 | -5/Factory | Sucked down chute 12937 | -5/Factory | Entered Waste 12937 | -5/Waste | The area was eerily silent 12953 | -5/Waste | Found Damper Plating 12966 | -5/Waste | Lost 6 parts (1p2n3u) 13283 | -5/Waste | Build established: Scavenger-Mutant 13301 | -5/Waste | Found Prototype Processor 13581 | -5/Waste | Discovered new exit (range 13) 13698 | -5/Waste | Identified Exp. Core Analyzer 13736 | -5/Waste | Found Damper Plating 13767 | -5/Waste | Identified exit to Factory 13825 | -5/Waste | Entered Factory 14006 | -5/Factory | Build established: Mutant 14547 | -5/Factory | Entered Upper Caves 14820 | -5/Upper Caves | Attracted the attention of an 0b10 outpost 14955 | -5/Upper Caves | Core integrity fell below 20% 15283 | -5/Upper Caves | Build established: Scavenger-Skirmisher 15453 | -5/Upper Caves | Attracted the attention of an 0b10 checkpoint 15520 | -5/Upper Caves | Learned Factory garrison access intel 15767 | -5/Upper Caves | Build established: Scavenger-Mutant 15931 | -5/Upper Caves | Destroyed 10 combat bots 15931 | -5/Upper Caves | Lost 3 parts (1p1n1w) 16601 | -5/Upper Caves | Discovered new exit (range 12) 16642 | -5/Upper Caves | Identified exit to Upper Caves 16909 | -5/Upper Caves | Entered another Upper Caves area 16909 | -5/Upper Caves | Discovered new exit (range 8) 16951 | -5/Upper Caves | Identified exit to Factory 17899 | -5/Upper Caves | Discovered new exit (range 12) 17924 | -5/Upper Caves | Identified exit to Zhirov 18414 | -5/Upper Caves | Entered Zhirov 18414 | -5/Zhirov | Discovered new exit (range 3) 18460 | -5/Zhirov | Met Zhirov 18506 | -5/Zhirov | Learned location of Quarantine (-3) 18506 | -5/Zhirov | Learned location of Testing (-2) 18561 | -5/Zhirov | Zhirov requested help retrieving the SGEMP Prototype 18602 | -5/Zhirov | Found Alien Artifact 18602 | -5/Zhirov | Identified Integrated Dissipator 18602 | -5/Zhirov | Installed Integrated Dissipator, increased core heat dissipation (+20) 18646 | -5/Zhirov | Found Alien Artifact 18982 | -5/Zhirov | Build established: Mutant 19065 | -5/Zhirov | Identified exit to Proximity Caves 19068 | -5/Zhirov | Entered Proximity Caves 19078 | -4/Proximity Caves | Spotter reported a threat 19078 | -4/Proximity Caves | Spotter reported a threat 19457 | -4/Proximity Caves | Spotter reported a threat 19536 | -4/Proximity Caves | Spotter reported a threat 19554 | -4/Proximity Caves | Destroyed self with Heavy Rocket Launcher Last Messages --------------- 19106_ Adv. Visual Processing Unit self-destruct mechanism malfunctions. 19133_ Drone released from Drone Bay. 19137_ Ended siege mode. 19140_ Drone retrieved by Drone Bay. 19141_ Acquired 15 matter. 19157_ Acquired derelict log, extracted data. World map confirmed: -3/Quarantine. 19187_ Drone destroyed. 19455_ N-01 Spotter is scanning... 19457_ N-01 Spotter sends a signal. 19457_ ALERT: Unidentified potential threat approaching Complex 0b10. 19534_ N-01 Spotter is scanning... 19536_ N-01 Spotter sends a signal. 19536_ ALERT: Unidentified potential threat approaching Complex 0b10. 19550_ The unstable cave ceiling collapses. 19554_ Drone Bay destroyed. 19554_ Destroyed Drone Bay. Map ----- +----------------------------------------------------+ | | | ?????????????????????????????????????????????????? | | ?????????????????????????????????????????????????? | | ?????????????????????????????????????????????????? | | ?????????????????????????????????????????????????? | | ?????????????????????????????????????????????????? | | ?????????????????????????????????????????????????? | | ?????????????????????????????????????????????????? | | ???????????????????????????????###???????????????? | | ??????????????????????????????# ##??????????????? | | ?????????????????????????????# #??????????????? | | ????????????????????????????? #??????????????? | | ????????????????????????????? ##?????????????? | | ????????????????????????????## ##?????????????? | | ?????????????????????######### # ##?????????????? | | ????########?????############ # #?????????????? | | ?############???####### ## ###???????????? | | ###### ####??### #???????????? | | ### ###??## #???????????? | | ## ##??### #????????????? | | # ####???## ## ##????????????? | | ## ###?????## ## ##????????????? | | ### ####????## ## ##????????????? | | ###### ######### ##????????????? | | ####### ######## # # ##????????????? | | ##### ### @ # #????????????? | | ##### # # ##????????????? | | ### ## # ### ##?????????????? | | ### ## #### #### ###?????????????? | | ### ## ### ##?# #####????????????? | | #### ## ##### ## ?????????????? | | ### ######## #? #?????????????? | | ## ###### #? #??? ##???????? | | ### ######### ## #?? ##??????? | | ##### ####### ## #??????? | | ## ###### ###??# #???????? | | ## ###?# ##??# ## ###???????? | | #### ##### ###??#### ## ##????????????? | | ######## #### ###?????###?#% #????????????? | | ######## ## ####???????# ##????????????? | | #### ## ## #####???#### ###?????????????? | | ### # ### ###???### ##???????????????? | | ## ### ###?? #????????????????? | | ## #### #### ????????????????? | | #### # ####?# ### ????????????????? | | ##### # ###### ????????????????? | | ??#### # ##### ## ????????????????? | | ???###### #### #### ????????????????? | | ????###### ### ##### ????????????????? | | ???????#### # ## ##### #????????????????? | +----------------------------------------------------+ Best States ------------- Heat Dissipation 75 Coolant Potential 50 Energy Generation 25 Energy Capacity 350 Matter Stores 300 Matter Capacity 300 Sight Range 22 Robot Scan Range 16 Terrain Scan Range 16 Terrain Scan Density 210 Jamming Range 14 Additional Mass Support 20 Base Temperature (-) 150 EM Shielding 2 Armor Coverage 1600 Resistance: KI 25 Resistance: EM 90 Core Shielding 20 Propulsion Shielding 90 Weapon Cycling 20 Evasion (%) 55 Targeting Accuracy 8 Target Analysis 6 Core Analysis 6 Armor Integrity Analysis 30 Recoil Reduction 6 Matter Filtering 50 Offensive Hacking 24 Defensive Hacking 24 Item Schematics ----------------- Cargo Storage Unit | -10/Materials | Hacked Arm. Leg | -8/Recycling | Hacked Flak Gun | -8/Recycling | Hacked Adv. Visual Processing Unit | -8/Recycling | Hacked Lrn. Tractor Beam | -8/Recycling | Hacked Imp. Gravmag System | -8/Recycling | Hacked Assault Drone Bay | -5/Zhirov | Free Exp. Heat Sink | -5/Zhirov | Free Exp. Optical Array | -5/Zhirov | Free Imp. Arc Thrower | -5/Zhirov | Free Robot Schematics ------------------ None Fabricated ------------ Nothing Alien Tech Used ----------------- Integrated Dissipator Achievements -------------- None Challenges ------------ None Game ------ Seed SubdwellerReactiveActivator Manual? 0 Play Time 03:55:30 Cumulative 279.4 hours Start 2024.05.02 @ 09:09:12 End 2024.05.02 @ 17:08:17 Sessions 3 Manual Loads 0 Difficulty Rogue Special Mode None Game No. 75 Rogue 75 Adventurer 0 Explorer 0 Win Type - Total 16 Types 8/3/3/1/1/0/0/0/0 Lore% 57 Gallery% 78 Achievement% 69 Wizard Run 0 Options --------- Layout 1 ASCII 0 Keyboard 0 Movement Numpad Keybinds 0 Fullscreen 1 Font 24/Smallcaps Map View 50x35 Zoom Use 27% Tactical HUD 1 Map Filters NONE Filters NONE Steam 1 RUN: 2c3d380d-779a-45ad-ae7c-418eb6171d03